fUST/lending_fUST_20250730
["ID","MTS","AMOUNT","RATE_DAILY","PERIOD"]
[376089465,1753859439619,-12639.5777639,0.00019973,2]
[376089468,1753859439628,-160.0,0.00019973,2]
[376089470,1753859439638,-460.59675358,0.00019973,2]
[376089472,1753859439647,-160.0,0.00019973,2]
[376089473,1753859439657,-160.0,0.00019973,2]
[376089476,1753859439667,-214.95885286,0.00019973,2]
[376089478,1753859439677,-231.43925844,0.00019973,2]
[376089479,1753859439686,-841.2246943,0.00019973,2]
[376089481,1753859439696,-171.58170541,0.00019999,2]
[376089484,1753859439706,-500.0,0.00019999,2]
[376089485,1753859439716,-256.82582238,0.00019999,2]
[376089487,1753859439731,-500.0,0.00019999,2]
[376089490,1753859439741,-207.0,0.00019999,2]
[376089491,1753859439750,-548.19954429,0.00019999,2]
[376089494,1753859439760,-500.0,0.00019999,2]
[376089495,1753859439769,-500.0,0.00019999,2]
[376089498,1753859439780,-209.82863628,0.00019999,2]
[376089499,1753859439789,-160.0,0.00020002,2]
[376089501,1753859439799,-1000.0,0.00020037,2]
[376089504,1753859439808,-291.0226001,0.00020059,2]
[376089507,1753859439818,-794.84647488,0.00020074,2]
[376089509,1753859439828,-1000.0,0.00020087,2]
[376089511,1753859439838,-25000.0,0.00020141,2]
[376089513,1753859439853,-152.38270652,0.00020141,2]
[376089515,1753859439863,-208.744633,0.00020187,2]
[376089517,1753859439874,-1560.42,0.0002022,2]
[376089519,1753859439884,-1646.33,0.0002022,2]
[376089521,1753859439895,-991.0,0.0002022,2]
[376089523,1753859439906,-488.41,0.0002022,2]
[376089525,1753859439916,-460.0,0.00020221,2]
[376089528,1753859439931,-526.33,0.00020221,2]
[376089530,1753859439940,-460.0,0.00020221,2]
[376089532,1753859439950,-460.0,0.00020221,2]
[376089533,1753859439959,-460.0,0.00020221,2]
[376089536,1753859439971,-500.0,0.00020221,2]
[376089541,1753859440188,-500.0,0.00020221,2]
[376089543,1753859440198,-500.0,0.00020221,2]
[376089545,1753859440212,-500.0,0.00020221,2]
[376089547,1753859440222,-290.28255453,0.00020221,2]
[376089548,1753859440234,-2636.6,0.00020222,2]
[376089550,1753859440244,-460.0,0.00020222,2]
[376089553,1753859440254,-1100.0,0.00020222,2]
[376089554,1753859440263,-460.0,0.00020222,2]
[376089556,1753859440273,-460.0,0.00020222,2]
[376089559,1753859440284,-1087.88,0.00020222,2]
[376089560,1753859440293,-998.64,0.00020222,2]
[376089562,1753859440303,-490.65,0.00020222,2]
[376089565,1753859440312,-460.0,0.00020222,2]
[376089566,1753859440322,-460.0,0.00020222,2]
[376089568,1753859440331,-511.33,0.00020222,2]
[376089570,1753859440340,-460.0,0.00020222,2]
[376089572,1753859440349,-2780.21,0.00020223,2]
[376089574,1753859440359,-624.45,0.00020223,2]
[376089576,1753859440369,-986.64,0.00020223,2]
[376089578,1753859440379,-460.0,0.00020223,2]
[376089580,1753859440389,-892.13,0.00020224,2]
[376089582,1753859440399,-1695.19,0.00020224,2]
[376089584,1753859440408,-800.37,0.00020224,2]
[376089587,1753859440418,-1070.74,0.00020487,3]
[376089589,1753859440428,-446.14,0.00020487,3]
[376089591,1753859440438,-1560.42,0.00020494,2]
[376089593,1753859440448,-1646.33,0.00020494,2]
[376089595,1753859440458,-991.0,0.00020494,2]
[376089597,1753859440467,-488.41,0.00020494,2]
[376089599,1753859440477,-460.0,0.00020495,2]
[376089601,1753859440487,-526.33,0.00020495,2]
[376089603,1753859440496,-460.0,0.00020495,2]
[376089605,1753859440506,-460.0,0.00020495,2]
[376089607,1753859440515,-460.0,0.00020495,2]
[376089609,1753859440527,-2636.6,0.00020496,2]
[376089611,1753859440537,-460.0,0.00020496,2]
[376089613,1753859440546,-1100.0,0.00020496,2]
[376089615,1753859440555,-460.0,0.00020496,2]
[376089617,1753859440565,-460.0,0.00020496,2]
[376089619,1753859440574,-1087.88,0.00020496,2]
[376089621,1753859440584,-998.64,0.00020496,2]
[376089623,1753859440594,-490.65,0.00020496,2]
[376089625,1753859440604,-460.0,0.00020496,2]
[376089627,1753859440614,-460.0,0.00020496,2]
[376089629,1753859440626,-511.33,0.00020496,2]
[376089631,1753859440636,-460.0,0.00020496,2]
[376089633,1753859440645,-2780.21,0.00020497,2]
[376089635,1753859440655,-624.45,0.00020497,2]
[376089637,1753859440665,-986.64,0.00020497,2]
[376089639,1753859440674,-460.0,0.00020497,2]
[376089641,1753859440684,-1695.19,0.00020498,2]
[376089643,1753859440694,-800.37,0.00020498,2]
[376089645,1753859440703,-783.23402811,0.00020521,2]
[376089647,1753859440713,-420.0,0.00020549,2]
[376089649,1753859440722,-260.0,0.0002055,2]
[376089651,1753859440732,-350.4,0.00020573,3]
[376089653,1753859440742,-1500.0,0.00020585,2]
[376089655,1753859440753,-25000.0,0.00020689,2]
[376089657,1753859440762,-350.4,0.00020746,3]
[376089659,1753859440772,-1560.42,0.00020768,2]
[376089662,1753859440782,-1646.33,0.00020768,2]
[376089664,1753859440791,-991.0,0.00020768,2]
[376089665,1753859440801,-488.41,0.00020768,2]
[376089667,1753859440811,-460.0,0.00020769,2]
[376089669,1753859440821,-526.33,0.00020769,2]
[376089672,1753859440830,-460.0,0.00020769,2]
[376089674,1753859440840,-515.66,0.00020769,2]
[376089676,1753859440849,-460.0,0.00020769,2]
[376089678,1753859440859,-2636.6,0.0002077,2]
[376089680,1753859440872,-460.0,0.0002077,2]
[376089682,1753859440882,-1100.0,0.0002077,2]
[376089684,1753859440894,-460.0,0.0002077,2]
[376089686,1753859440903,-319.84420484,0.0002077,2]
[376089688,1753859440918,-140.15579516,0.0002077,2]
[376089690,1753859440931,-1087.88,0.0002077,2]
[376089692,1753859440940,-998.64,0.0002077,2]
[376089694,1753859440950,-490.65,0.0002077,2]
[376089696,1753859440960,-460.0,0.0002077,2]
[376089698,1753859440972,-460.0,0.0002077,2]
[376089700,1753859440987,-511.33,0.0002077,2]
[376089702,1753859440998,-460.0,0.0002077,2]
[376089704,1753859441008,-2780.21,0.00020771,2]
[376089706,1753859441018,-624.45,0.00020771,2]
[376089708,1753859441027,-986.64,0.00020771,2]
[376089710,1753859441037,-460.0,0.00020771,2]
[376089712,1753859441047,-1695.19,0.00020772,2]
[376089715,1753859441060,-800.37,0.00020772,2]
[376089716,1753859441070,-794.84647488,0.00020846,2]
[376089719,1753859441080,-500.0,0.00020875,2]
[376089720,1753859441089,-500.0,0.00020875,2]
[376089723,1753859441099,-500.0,0.00020875,2]
[376089724,1753859441109,-500.0,0.00020875,2]
[376089741,1753859441254,-500.0,0.00020875,2]
[376089743,1753859441264,-350.4,0.0002092,3]
[376089745,1753859441273,-3000.0,0.00021,2]
[376089747,1753859441282,-3000.0,0.0002101,2]
[376089749,1753859441292,-151.0,0.0002104,2]
[376089751,1753859441301,-1560.42,0.00021042,2]
[376089753,1753859441311,-1646.33,0.00021042,2]
[376089755,1753859441320,-991.0,0.00021042,2]
[376089757,1753859441330,-488.41,0.00021042,2]
[376089759,1753859441340,-460.0,0.00021043,2]
[376089761,1753859441350,-526.33,0.00021043,2]
[376089763,1753859441359,-460.0,0.00021043,2]
[376089765,1753859441369,-460.0,0.00021043,2]
[376089767,1753859441380,-2636.6,0.00021044,2]
[376089769,1753859441389,-460.0,0.00021044,2]
[376089771,1753859441399,-1100.0,0.00021044,2]
[376089773,1753859441409,-460.0,0.00021044,2]
[376089775,1753859441418,-460.0,0.00021044,2]
[376089777,1753859441428,-1087.88,0.00021044,2]
[376089779,1753859441438,-998.64,0.00021044,2]
[376089781,1753859441447,-490.65,0.00021044,2]
[376089783,1753859441457,-460.0,0.00021044,2]
[376089785,1753859441467,-460.0,0.00021044,2]
[376089787,1753859441476,-511.33,0.00021044,2]
[376089789,1753859441486,-460.0,0.00021044,2]
[376089791,1753859441495,-2780.21,0.00021045,2]
[376089793,1753859441505,-624.45,0.00021045,2]
[376089795,1753859441515,-986.64,0.00021045,2]
[376089797,1753859441525,-460.0,0.00021045,2]
[376089799,1753859441541,-1695.19,0.00021046,2]
[376089801,1753859441560,-800.37,0.00021046,2]
[376089803,1753859441570,-500.0,0.00021075,2]
[376089805,1753859441579,-350.4,0.00021093,3]
[376089807,1753859441589,-153.0,0.00021096,2]
[376089809,1753859441599,-153.0,0.00021096,2]
[376089811,1753859441608,-360.0,0.00021098,2]
[376089813,1753859441618,-200.0,0.00021112,15]
[376089815,1753859441628,-200.0,0.00021112,15]
[376089817,1753859441637,-200.0,0.00021112,15]
[376089819,1753859441647,-200.0,0.00021112,15]
[376089821,1753859441657,-200.0,0.00021112,15]
[376089823,1753859441666,-200.0,0.00021112,15]
[376089825,1753859441675,-200.0,0.00021112,15]
[376089827,1753859441686,-200.0,0.00021112,15]
[376089829,1753859441695,-200.0,0.00021112,15]
[376089831,1753859441704,-200.0,0.00021112,15]
[376089833,1753859441714,-200.0,0.00021112,15]
[376089835,1753859441723,-200.0,0.00021112,15]
[376089837,1753859441733,-200.0,0.00021112,15]
[376089839,1753859441742,-200.0,0.00021112,15]
[376089841,1753859441752,-200.0,0.00021112,15]
[376089843,1753859441761,-200.0,0.00021112,15]
[376089845,1753859441771,-200.0,0.00021112,15]
[376089847,1753859441781,-200.0,0.00021112,15]
[376089849,1753859441790,-200.0,0.00021112,15]
[376089852,1753859441800,-200.0,0.00021112,15]
[376089853,1753859441809,-200.0,0.00021112,15]
[376089856,1753859441819,-280.0,0.00021112,15]
[376089857,1753859441829,-9508.72357908,0.00021119,2]
[376089859,1753859441838,-159.9591054,0.00021123,2]
[376089861,1753859441847,-178.2746415,0.00021123,2]
[376089863,1753859441857,-2000.0,0.00021133,2]
[376089865,1753859441866,-4000.0,0.00021208,4]
[376089867,1753859441877,-25000.0,0.00021237,2]
[376089869,1753859441887,-500.24555011,0.00021263,2]
[376089871,1753859441897,-500.0,0.00021263,2]
[376089873,1753859441906,-350.4,0.00021266,3]
[376089875,1753859441916,-1560.42,0.00021316,2]
[376089878,1753859441930,-1646.33,0.00021316,2]
[376089880,1753859441939,-991.0,0.00021316,2]
[376089882,1753859441949,-488.41,0.00021316,2]
[376089884,1753859441959,-296.65,0.00021317,2]
[376089886,1753859441970,-526.33,0.00021317,2]
[376089888,1753859441979,-460.0,0.00021317,2]
[376089890,1753859441989,-460.0,0.00021317,2]
[376089892,1753859441998,-2636.6,0.00021318,2]
[376089893,1753859442009,-460.0,0.00021318,2]
[376089895,1753859442019,-1100.0,0.00021318,2]
[376089897,1753859442029,-460.0,0.00021318,2]
[376089899,1753859442039,-460.0,0.00021318,2]
[376089901,1753859442049,-1087.88,0.00021318,2]
[376089903,1753859442058,-998.64,0.00021318,2]
[376089906,1753859442068,-490.65,0.00021318,2]
[376089907,1753859442078,-460.0,0.00021318,2]
[376089910,1753859442087,-511.33,0.00021318,2]
[376089911,1753859442097,-460.0,0.00021318,2]
[376089913,1753859442108,-2780.21,0.00021319,2]
[376089915,1753859442118,-624.45,0.00021319,2]
[376089917,1753859442128,-986.64,0.00021319,2]
[376089920,1753859442138,-460.0,0.00021319,2]
[376089922,1753859442148,-1695.19,0.0002132,2]
[376089924,1753859442158,-800.37,0.0002132,2]
[376089925,1753859442167,-151.0,0.00021323,2]
[376089927,1753859442177,-1000.0,0.00021423,2]
[376089929,1753859442186,-1000.0,0.00021423,2]
[376089931,1753859442195,-350.4,0.0002144,4]
[376089933,1753859442204,-5000.0,0.00021516,2]
[376089935,1753859442214,-1560.42,0.0002159,2]
[376089937,1753859442223,-1646.33,0.0002159,2]
[376089939,1753859442233,-991.0,0.0002159,2]
[376089941,1753859442242,-488.41,0.0002159,2]
[376089943,1753859442251,-526.33,0.00021591,2]
[376089945,1753859442261,-460.0,0.00021591,2]
[376089947,1753859442271,-460.0,0.00021591,2]
[376089949,1753859442280,-2636.6,0.00021592,2]
[376089951,1753859442290,-460.0,0.00021592,2]
[376089953,1753859442299,-1100.0,0.00021592,2]
[376089955,1753859442309,-290.52,0.00021592,2]
[376089957,1753859442318,-460.0,0.00021592,2]
[376089959,1753859442328,-1087.88,0.00021592,2]
[376089961,1753859442337,-998.64,0.00021592,2]
[376089963,1753859442347,-490.65,0.00021592,2]
[376089965,1753859442357,-460.0,0.00021592,2]
[376089967,1753859442366,-511.33,0.00021592,2]
[376089969,1753859442377,-460.0,0.00021592,2]
[376089971,1753859442386,-2780.21,0.00021593,2]
[376089973,1753859442396,-624.45,0.00021593,2]
[376089975,1753859442407,-986.64,0.00021593,2]
[376089977,1753859442417,-460.0,0.00021593,2]
[376089979,1753859442427,-1695.19,0.00021594,2]
[376089981,1753859442436,-800.37,0.00021594,2]
[376089983,1753859442445,-2146.0,0.00021603,2]
[376089985,1753859442455,-970.0,0.00021603,2]
[376089987,1753859442465,-350.4,0.00021613,4]
[376089989,1753859442474,-794.84647488,0.00021618,2]
[376089991,1753859442484,-1001.18513933,0.00021623,2]
[376089993,1753859442493,-460.0,0.00021646,2]
[376089995,1753859442502,-504.23337199,0.00021683,2]
[376089997,1753859442512,-500.0,0.00021714,2]
[376089999,1753859442521,-500.0,0.00021714,2]
[376090001,1753859442531,-500.0,0.00021714,2]
[376090003,1753859442540,-500.0,0.00021714,2]
[376090005,1753859442550,-294.88550665,0.00021714,2]
[376090007,1753859442560,-500.0,0.00021714,2]
[376090009,1753859442569,-151.0,0.00021739,2]
[376090011,1753859442579,-500.0,0.0002175,2]
[376090013,1753859442591,-500.0,0.0002175,2]
[376090015,1753859442600,-638.096,0.00021764,2]
[376090017,1753859442609,-179.29043487,0.00021764,2]
[376090019,1753859442619,-350.4,0.00021787,4]
[376090021,1753859442629,-224.830837,0.00021805,2]
[376090023,1753859442638,-488.33682323,0.0002181,2]
[376090025,1753859442648,-153.0,0.00021863,2]
[376090027,1753859442657,-1560.42,0.00021864,2]
[376090029,1753859442666,-1646.33,0.00021864,2]
[376090031,1753859442676,-991.0,0.00021864,2]
[376090033,1753859442686,-488.41,0.00021864,2]
[376090035,1753859442696,-526.33,0.00021865,2]
[376090037,1753859442705,-460.0,0.00021865,2]
[376090039,1753859442715,-210.32118068,0.00021865,2]
[376090041,1753859442724,-2636.6,0.00021866,2]
[376090043,1753859442733,-460.0,0.00021866,2]
[376090045,1753859442743,-1100.0,0.00021866,2]
[376090047,1753859442752,-460.0,0.00021866,2]
[376090049,1753859442762,-1087.88,0.00021866,2]
[376090051,1753859442771,-998.64,0.00021866,2]
[376090053,1753859442780,-490.65,0.00021866,2]
[376090055,1753859442790,-460.0,0.00021866,2]
[376090057,1753859442800,-511.33,0.00021866,2]
[376090059,1753859442809,-460.0,0.00021866,2]
[376090061,1753859442819,-2780.21,0.00021867,2]
[376090064,1753859442829,-624.45,0.00021867,2]
[376090067,1753859442839,-986.64,0.00021867,2]
[376090069,1753859442848,-460.0,0.00021867,2]
[376090070,1753859442857,-1695.19,0.00021868,2]
[376090073,1753859442867,-800.37,0.00021868,2]
[376090075,1753859442879,-154.91865829,0.00021886,2]
[376090077,1753859442888,-151.0,0.000219,4]
[376090079,1753859442897,-150.95560251,0.00021918,2]
[376090081,1753859442907,-580.4284818,0.00021945,2]
[376090083,1753859442917,-350.4,0.0002196,4]
[376090085,1753859442930,-1134.04680593,0.00021971,2]
[376090087,1753859442939,-1500.0,0.00021971,2]
[376090089,1753859442948,-2320.28,0.00022,2]
[376090091,1753859442959,-163.0,0.00022,2]
[376090093,1753859442968,-205.3915974,0.0002205,3]
[376090095,1753859442978,-12639.5777639,0.0002205,3]
[376090096,1753859442987,-350.4,0.00022133,4]
[376090100,1753859443000,-1560.42,0.00022138,2]
[376090103,1753859443010,-1646.33,0.00022138,2]
[376090106,1753859443020,-991.0,0.00022138,2]
[376090108,1753859443029,-488.41,0.00022138,2]
[376090109,1753859443038,-526.33,0.00022139,2]
[376090111,1753859443048,-460.0,0.00022139,2]
[376090113,1753859443057,-2636.6,0.0002214,2]
[376090116,1753859443066,-460.0,0.0002214,2]
[376090118,1753859443076,-1100.0,0.0002214,2]
[376090121,1753859443085,-460.0,0.0002214,2]
[376090124,1753859443095,-1087.88,0.0002214,2]
[376090127,1753859443104,-998.64,0.0002214,2]
[376090130,1753859443113,-490.65,0.0002214,2]
[376090133,1753859443123,-460.0,0.0002214,2]
[376090136,1753859443132,-511.33,0.0002214,2]
[376090139,1753859443142,-460.0,0.0002214,2]
[376090141,1753859443151,-2780.21,0.00022141,2]
[376090144,1753859443160,-624.45,0.00022141,2]
[376090146,1753859443170,-986.64,0.00022141,2]
[376090148,1753859443179,-460.0,0.00022141,2]
[376090150,1753859443189,-1695.19,0.00022142,2]
[376090152,1753859443198,-800.37,0.00022142,2]
[376090154,1753859443208,-151.0,0.00022171,7]
[376090156,1753859443218,-560.0,0.00022194,2]
[376090158,1753859443227,-151.0,0.000222,9]
[376090159,1753859443236,-151.84850461,0.00022261,2]
[376090161,1753859443245,-151.0,0.00022261,2]
[376090163,1753859443256,-151.0,0.00022261,2]
[376090165,1753859443265,-433.0,0.00022261,2]
[376090167,1753859443275,-151.57612041,0.00022261,2]
[376090169,1753859443284,-151.0,0.00022261,2]
[376090171,1753859443293,-151.0,0.00022261,2]
[376090173,1753859443302,-151.0,0.00022261,2]
[376090175,1753859443311,-151.63121868,0.00022261,2]
[376090177,1753859443321,-151.0,0.00022261,2]
[376090179,1753859443331,-151.0,0.00022261,2]
[376090181,1753859443340,-151.0,0.00022261,2]
[376090183,1753859443350,-151.0,0.00022261,2]
[376090185,1753859443359,-151.0,0.00022261,2]
[376090187,1753859443369,-1000.0,0.00022262,2]
[376090189,1753859443379,-1000.0,0.00022262,2]
[376090191,1753859443389,-350.4,0.00022307,4]
[376090193,1753859443398,-338.40500601,0.00022321,2]
[376090195,1753859443407,-1352.266404,0.00022321,2]
[376090197,1753859443416,-794.84647488,0.0002239,2]
[376090198,1753859443425,-9508.72357908,0.0002239,2]
[376090200,1753859443434,-2000.0,0.000224,2]
[376090202,1753859443444,-587.0,0.00022401,2]
[376090204,1753859443453,-1560.42,0.00022412,2]
[376090206,1753859443462,-1646.33,0.00022412,2]
[376090208,1753859443472,-991.0,0.00022412,2]
[376090210,1753859443481,-488.41,0.00022412,2]
[376090212,1753859443490,-526.33,0.00022413,2]
[376090214,1753859443499,-460.0,0.00022413,2]
[376090216,1753859443509,-2636.6,0.00022414,2]
[376090218,1753859443518,-460.0,0.00022414,2]
[376090220,1753859443528,-1100.0,0.00022414,2]
[376090222,1753859443537,-460.0,0.00022414,2]
[376090224,1753859443547,-1087.88,0.00022414,2]
[376090226,1753859443556,-998.64,0.00022414,2]
[376090228,1753859443566,-490.65,0.00022414,2]
[376090231,1753859443576,-460.0,0.00022414,2]
[376090234,1753859443586,-511.33,0.00022414,2]
[376090236,1753859443595,-460.0,0.00022414,2]
[376090238,1753859443604,-2780.21,0.00022415,2]
[376090240,1753859443613,-624.45,0.00022415,2]
[376090242,1753859443623,-986.64,0.00022415,2]
[376090244,1753859443632,-1695.19,0.00022416,2]
[376090245,1753859443641,-800.37,0.00022416,2]
[376090247,1753859443650,-2200.0,0.00022457,2]
[376090249,1753859443660,-500.0,0.00022473,2]
[376090251,1753859443669,-500.0,0.00022473,2]
[376090253,1753859443678,-500.0,0.00022473,2]
[376090255,1753859443689,-500.0,0.00022473,2]
[376090257,1753859443698,-500.0,0.00022473,2]
[376090259,1753859443708,-500.0,0.00022473,2]
[376090261,1753859443718,-500.0,0.00022473,2]
[376090263,1753859443728,-500.0,0.00022473,2]
[376090265,1753859443737,-500.0,0.00022473,2]
[376090267,1753859443746,-455.94386015,0.00022473,2]
[376090269,1753859443755,-500.0,0.00022473,2]
[376090271,1753859443764,-500.0,0.00022473,2]
[376090273,1753859443773,-500.0,0.00022473,2]
[376090275,1753859443782,-500.0,0.00022473,2]
[376090277,1753859443791,-500.0,0.00022473,2]
[376090278,1753859443801,-500.0,0.00022473,2]
[376090280,1753859443810,-161.86565959,0.00022473,2]
[376090282,1753859443820,-503.56560902,0.00022473,2]
[376090285,1753859443830,-282.851564,0.0002248,7]
[376090287,1753859443840,-350.4,0.0002248,4]
[376090289,1753859443849,-367009.72353787,0.0002249,7]
[376090291,1753859443859,-166131.33752738,0.0002249,7]
[376090292,1753859443868,-170701.27336813,0.0002249,7]
[376090294,1753859443880,-151.0,0.0002249,7]
[376090296,1753859443890,-1008.55880664,0.000225,2]
[376090298,1753859443900,-3562.07,0.000225,7]
[376090300,1753859443909,-1728.92,0.000225,7]
[376090302,1753859443919,-10725.88,0.000225,7]
[376090304,1753859443932,-250.0,0.000225,2]
[376090316,1753859444042,-250.0,0.000225,2]
[376090318,1753859444052,-250.0,0.000225,2]
[376090320,1753859444062,-250.0,0.000225,2]
[376090322,1753859444071,-250.0,0.000225,2]
[376090324,1753859444082,-250.0,0.000225,2]
[376090326,1753859444092,-384.2,0.000225,2]
[376090328,1753859444102,-61730.87,0.000225,2]
[376090330,1753859444113,-12639.5777639,0.000225,7]
[376090332,1753859444122,-2000.0,0.00022519,2]
[376090334,1753859444134,-206.0,0.0002253,2]
[376090336,1753859444143,-182.0,0.00022533,2]
[376090338,1753859444153,-151.0,0.00022535,2]
[376090340,1753859444163,-198.0,0.00022535,2]
[376090342,1753859444172,-433.0,0.00022535,2]
[376090344,1753859444181,-151.0,0.00022535,2]
[376090346,1753859444191,-198.0,0.00022535,2]
[376090347,1753859444200,-168.0,0.00022566,2]
[376090349,1753859444210,-2320.28,0.00022568,2]
[376090352,1753859444220,-182.0,0.00022569,2]
[376090353,1753859444230,-168.0,0.00022589,2]
[376090355,1753859444239,-1475.76356943,0.000226,4]
[376090357,1753859444248,-182.0,0.0002263,2]
[376090359,1753859444258,-1560.42,0.00022686,2]
[376090361,1753859444267,-1646.33,0.00022686,2]
[376090363,1753859444277,-991.0,0.00022686,2]
[376090365,1753859444287,-488.41,0.00022686,2]
[376090367,1753859444296,-526.33,0.00022687,2]
[376090369,1753859444305,-460.0,0.00022687,2]
[376090371,1753859444314,-2636.6,0.00022688,2]
[376090373,1753859444323,-328.28,0.00022688,2]
[376090375,1753859444333,-1100.0,0.00022688,2]
[376090377,1753859444342,-460.0,0.00022688,2]
[376090379,1753859444351,-1087.88,0.00022688,2]
[376090380,1753859444361,-998.64,0.00022688,2]
[376090382,1753859444370,-490.65,0.00022688,2]
[376090384,1753859444382,-460.0,0.00022688,2]
[376090386,1753859444392,-511.33,0.00022688,2]
[376090388,1753859444401,-460.0,0.00022688,2]
[376090390,1753859444410,-2780.21,0.00022689,2]
[376090392,1753859444419,-624.45,0.00022689,2]
[376090394,1753859444428,-986.64,0.00022689,2]
[376090396,1753859444438,-1695.19,0.0002269,2]
[376090398,1753859444447,-800.37,0.0002269,2]
[376090400,1753859444457,-160.0,0.000227,3]
[376090402,1753859444466,-182.0,0.00022727,2]
[376090404,1753859444476,-160.0,0.0002274,3]
[376090406,1753859444485,-203.15299027,0.0002274,5]
[376090408,1753859444495,-660.0,0.00022742,2]
[376090410,1753859444504,-2702.60577398,0.00022773,2]
[376090412,1753859444514,-367.0,0.00022796,2]
[376090414,1753859444523,-152.0,0.000228,7]
[376090415,1753859444533,-151.0,0.00022809,2]
[376090417,1753859444542,-433.0,0.00022809,2]
[376090419,1753859444551,-151.0,0.00022809,2]
[376090421,1753859444561,-1007.94204418,0.0002281,2]
[376090423,1753859444570,-265.51548543,0.0002281,2]
[376090425,1753859444579,-168.0,0.00022835,2]
[376090427,1753859444590,-44000.0,0.0002287,2]
[376090429,1753859444599,-500.0,0.00022873,2]
[376090431,1753859444608,-500.0,0.00022873,2]
[376090433,1753859444618,-500.48698167,0.00022873,2]
[376090435,1753859444629,-500.0,0.00022873,2]
[376090437,1753859444640,-408.14500492,0.00022873,2]
[376090439,1753859444649,-500.0,0.00022873,2]
[376090441,1753859444658,-500.0,0.00022873,2]
[376090443,1753859444668,-1002.07978883,0.0002288,2]
[376090445,1753859444678,-1402.776555,0.0002288,5]
[376090447,1753859444687,-126123.68242701,0.000229,7]
[376090449,1753859444697,-16951.70022644,0.000229,7]
[376090451,1753859444706,-151.0,0.000229,7]
[376090453,1753859444715,-1000.0,0.000229,5]
[376090455,1753859444725,-1000.0,0.0002292,5]
[376090457,1753859444734,-1000.0,0.0002294,5]
[376090459,1753859444743,-1000.0,0.0002296,5]
[376090461,1753859444752,-1560.42,0.0002296,2]
[376090463,1753859444762,-1646.33,0.0002296,2]
[376090464,1753859444771,-991.0,0.0002296,2]
[376090466,1753859444781,-488.41,0.0002296,2]
[376090468,1753859444791,-526.33,0.00022961,2]
[376090470,1753859444800,-579.06736177,0.00022961,2]
[376090472,1753859444810,-2636.6,0.00022962,2]
[376090474,1753859444819,-1100.0,0.00022962,2]
[376090476,1753859444829,-269.05636432,0.00022962,2]
[376090478,1753859444838,-1087.88,0.00022962,2]
[376090480,1753859444848,-998.64,0.00022962,2]
[376090482,1753859444857,-490.65,0.00022962,2]
[376090484,1753859444867,-460.0,0.00022962,2]
[376090486,1753859444876,-511.33,0.00022962,2]
[376090487,1753859444886,-460.0,0.00022962,2]
[376090489,1753859444896,-2780.21,0.00022963,2]
[376090491,1753859444906,-624.45,0.00022963,2]
[376090493,1753859444915,-986.64,0.00022963,2]
[376090494,1753859444927,-1224.0,0.00022964,2]
[376090495,1753859444937,-1695.19,0.00022964,2]
[376090496,1753859444947,-800.37,0.00022964,2]
[376090497,1753859444956,-367.0,0.00022964,2]